[Event "Titled Tuesday Blitz May 23 Late 2023"]
[White "Barbosa, Evandro Amorim"]
[Black "el_sporco"]
[WhiteFideId "2115824"]
[WhiteElo "2439"]
[BlackElo "2350"]
[Result "0-1"]
[Round "01"]
[TimeControl "180+2"]
[Date "2023.05.23"]
[WhiteClock "0:00:31"]
[BlackClock "0:00:12"]

1. e4 {[%clk 0:02:59]}  c5 {[%clk 0:02:55]} 2. Nf3 {[%clk 0:02:59]}  d6 {[%clk 0:02:55]} 3. d4 {[%clk 0:02:59]}  cxd4 {[%clk 0:02:55]} 4. Nxd4 {[%clk 0:03:00]}  Nf6 {[%clk 0:02:54]} 5. Nc3 {[%clk 0:03:00]}  a6 {[%clk 0:02:54]} 6. Be2 {[%clk 0:02:58]}  e5 {[%clk 0:02:53]} 7. Nf3 {[%clk 0:02:58]}  Be7 {[%clk 0:02:53]} 8. Bg5 {[%clk 0:02:58]}  Be6 {[%clk 0:02:52]} 9. Bxf6 {[%clk 0:02:57]}  Bxf6 {[%clk 0:02:53]} 10. O-O {[%clk 0:02:57]}  O-O {[%clk 0:02:53]} 11. Nd5 {[%clk 0:02:57]}  Nd7 {[%clk 0:02:52]} 12. Bc4 {[%clk 0:02:57]}  Rc8 {[%clk 0:02:49]} 13. Qe2 {[%clk 0:02:56]}  Nb6 {[%clk 0:02:38]} 14. Nxb6 {[%clk 0:02:56]}  Qxb6 {[%clk 0:02:39]} 15. Bb3 {[%clk 0:02:56]}  Qc6 {[%clk 0:02:12]} 16. c3 {[%clk 0:02:53]}  d5 {[%clk 0:02:07]} 17. exd5 {[%clk 0:02:50]}  Bxd5 {[%clk 0:02:08]} 18. Bxd5 {[%clk 0:02:50]}  Qxd5 {[%clk 0:02:09]} 19. Nd2 {[%clk 0:02:50]}  g6 {[%clk 0:01:59]} 20. Rfd1 {[%clk 0:02:48]}  Qe6 {[%clk 0:01:47]} 21. Ne4 {[%clk 0:02:46]}  Be7 {[%clk 0:01:47]} 22. h4 {[%clk 0:02:25]}  f5 {[%clk 0:01:46]} 23. Ng5 {[%clk 0:02:23]}  Bxg5 {[%clk 0:01:46]} 24. hxg5 {[%clk 0:02:24]}  Rfd8 {[%clk 0:01:44]} 25. Rd2 {[%clk 0:02:19]}  Qe7 {[%clk 0:01:39]} 26. Rad1 {[%clk 0:02:14]}  Qxg5 {[%clk 0:01:36]} 27. Qe3 {[%clk 0:01:15]}  Rxd2 {[%clk 0:00:54]} 28. Qxg5 {[%clk 0:01:11]}  Rxd1+ {[%clk 0:00:54]} 29. Kh2 {[%clk 0:01:11]}  Rcd8 {[%clk 0:00:53]} 30. Qe7 {[%clk 0:01:09]}  R1d7 {[%clk 0:00:51]} 31. Qxe5 {[%clk 0:01:09]}  Rd2 {[%clk 0:00:49]} 32. Qc7 {[%clk 0:01:06]}  R8d7 {[%clk 0:00:48]} 33. Qc8+ {[%clk 0:01:05]}  Kg7 {[%clk 0:00:48]} 34. b4 {[%clk 0:01:04]}  h5 {[%clk 0:00:43]} 35. a4 {[%clk 0:01:04]}  f4 {[%clk 0:00:35]} 36. Qb8 {[%clk 0:00:57]}  Rxf2 {[%clk 0:00:28]} 37. Qe5+ {[%clk 0:00:57]}  Kh7 {[%clk 0:00:23]} 38. Kh3 {[%clk 0:00:52]}  Rd3+ {[%clk 0:00:22]} 39. Kh4 {[%clk 0:00:52]}  Rxg2 {[%clk 0:00:15]} 40. Qe7+ {[%clk 0:00:49]}  Kh6 {[%clk 0:00:13]} 41. Qf8+ {[%clk 0:00:48]}  Kh7 {[%clk 0:00:13]} 42. b5 {[%clk 0:00:31]}  Rg4# {[%clk 0:00:12]} 0-1


[Site "https://www.chess.com"]

[Event "Titled Tuesday Blitz May 23 Late 2023"]
[White "Amburgy, Ryan"]
[Black "Shapiro, Daniel"]
[WhiteFideId "30924820"]
[BlackFideId "2001780"]
[WhiteElo "2134"]
[BlackElo "2349"]
[Result "1-0"]
[Round "01"]
[TimeControl "180+2"]
[Date "2023.05.23"]
[WhiteClock "0:01:01"]
[BlackClock "0:00:00"]

1. d4 {[%clk 0:02:59]}  Nf6 {[%clk 0:02:58]} 2. c4 {[%clk 0:02:59]}  e6 {[%clk 0:02:58]} 3. Nf3 {[%clk 0:03:00]}  d5 {[%clk 0:02:56]} 4. Nc3 {[%clk 0:03:00]}  Bb4 {[%clk 0:02:56]} 5. Qa4+ {[%clk 0:03:00]}  Nc6 {[%clk 0:02:56]} 6. a3 {[%clk 0:03:01]}  Bxc3+ {[%clk 0:02:49]} 7. bxc3 {[%clk 0:03:02]}  O-O {[%clk 0:02:48]} 8. Bg5 {[%clk 0:03:02]}  h6 {[%clk 0:02:43]} 9. Bh4 {[%clk 0:03:01]}  Bd7 {[%clk 0:02:38]} 10. cxd5 {[%clk 0:03:00]}  exd5 {[%clk 0:02:36]} 11. e3 {[%clk 0:03:00]}  a6 {[%clk 0:02:33]} 12. Qc2 {[%clk 0:02:59]}  Re8 {[%clk 0:02:20]} 13. Bd3 {[%clk 0:02:55]}  Na5 {[%clk 0:02:08]} 14. Ne5 {[%clk 0:02:51]}  Bb5 {[%clk 0:02:08]} 15. O-O {[%clk 0:02:36]}  c5 {[%clk 0:01:59]} 16. Bxb5 {[%clk 0:02:16]}  axb5 {[%clk 0:01:58]} 17. Rfb1 {[%clk 0:02:16]}  g5 {[%clk 0:01:36]} 18. Bg3 {[%clk 0:02:16]}  Ne4 {[%clk 0:01:36]} 19. Rxb5 {[%clk 0:02:11]}  Rc8 {[%clk 0:01:35]} 20. f3 {[%clk 0:01:58]}  Nxg3 {[%clk 0:01:29]} 21. hxg3 {[%clk 0:01:59]}  cxd4 {[%clk 0:01:23]} 22. exd4 {[%clk 0:01:59]}  Re6 {[%clk 0:01:11]} 23. Qf5 {[%clk 0:01:45]}  Rf6 {[%clk 0:00:53]} 24. Qd7 {[%clk 0:01:45]}  Qxd7 {[%clk 0:00:23]} 25. Nxd7 {[%clk 0:01:46]}  Ra6 {[%clk 0:00:20]} 26. Nc5 {[%clk 0:01:42]}  Ra7 {[%clk 0:00:20]} 27. Rab1 {[%clk 0:01:37]}  Nc4 {[%clk 0:00:17]} 28. Rxb7 {[%clk 0:01:37]}  Rxa3 {[%clk 0:00:17]} 29. Re1 {[%clk 0:01:27]}  Nd6 {[%clk 0:00:12]} 30. Rd7 {[%clk 0:01:26]}  Rc6 {[%clk 0:00:13]} 31. Re3 {[%clk 0:01:20]}  Nf5 {[%clk 0:00:10]} 32. Re8+ {[%clk 0:01:20]}  Kg7 {[%clk 0:00:10]} 33. g4 {[%clk 0:01:21]}  Nh4 {[%clk 0:00:06]} 34. Ree7 {[%clk 0:01:19]}  Rf6 {[%clk 0:00:05]} 35. Nd3 {[%clk 0:00:59]}  Rxc3 {[%clk 0:00:04]} 36. Ne5 {[%clk 0:00:59]}  Rc1+ {[%clk 0:00:04]} 37. Kh2 {[%clk 0:00:58]}  Rc2 {[%clk 0:00:04]} 38. Rxf7+ {[%clk 0:00:59]}  Rxf7 {[%clk 0:00:03]} 39. Rxf7+ {[%clk 0:01:00]}  Kg8 {[%clk 0:00:04]} 40. Rd7 {[%clk 0:01:01]}  Rxg2+ {[%clk 0:00:03]} 41. Kh3 {[%clk 0:01:01]}  Rd2 {[%clk 0:00:03]} 42. Rxd5 {[%clk 0:01:01]}  Kg7 {[%clk 0:00:00]} 43. Rd6 {[%clk 0:01:01]} 1-0


[Site "https://www.chess.com"]

[Event "Titled Tuesday Blitz May 23 Late 2023"]
[White "StarkyNZ"]
[Black "Rosen, Eric"]
[BlackFideId "2032562"]
[WhiteElo "2348"]
[BlackElo "2331"]
[Result "0-1"]
[Round "01"]
[TimeControl "180+2"]
[Date "2023.05.23"]
[WhiteClock "0:00:00"]
[BlackClock "0:00:08"]

1. d4 {[%clk 0:03:00]}  d5 {[%clk 0:02:59]} 2. c4 {[%clk 0:03:00]}  e6 {[%clk 0:03:00]} 3. Nf3 {[%clk 0:03:00]}  Nf6 {[%clk 0:03:00]} 4. Nc3 {[%clk 0:03:01]}  Nbd7 {[%clk 0:03:00]} 5. cxd5 {[%clk 0:03:00]}  exd5 {[%clk 0:03:01]} 6. Bf4 {[%clk 0:03:00]}  Bb4 {[%clk 0:03:01]} 7. e3 {[%clk 0:02:58]}  Ne4 {[%clk 0:02:58]} 8. Rc1 {[%clk 0:02:58]}  c5 {[%clk 0:02:40]} 9. Bd3 {[%clk 0:02:35]}  Ndf6 {[%clk 0:02:35]} 10. O-O {[%clk 0:02:33]}  Bxc3 {[%clk 0:02:33]} 11. bxc3 {[%clk 0:02:33]}  c4 {[%clk 0:02:33]} 12. Bb1 {[%clk 0:02:25]}  O-O {[%clk 0:02:31]} 13. Nd2 {[%clk 0:02:25]}  Bf5 {[%clk 0:02:21]} 14. f3 {[%clk 0:02:14]}  Nxd2 {[%clk 0:02:21]} 15. Qxd2 {[%clk 0:02:15]}  Bg6 {[%clk 0:02:14]} 16. Bg5 {[%clk 0:02:11]}  h6 {[%clk 0:02:06]} 17. Bxf6 {[%clk 0:02:08]}  Qxf6 {[%clk 0:02:05]} 18. Bxg6 {[%clk 0:02:08]}  Qxg6 {[%clk 0:02:04]} 19. Rb1 {[%clk 0:02:07]}  Rab8 {[%clk 0:02:04]} 20. Rb5 {[%clk 0:02:07]}  Qc6 {[%clk 0:02:00]} 21. Rfb1 {[%clk 0:02:06]}  b6 {[%clk 0:02:00]} 22. a4 {[%clk 0:02:05]}  a6 {[%clk 0:01:55]} 23. R5b4 {[%clk 0:02:03]}  Rb7 {[%clk 0:01:56]} 24. Qc2 {[%clk 0:01:52]}  Rfb8 {[%clk 0:01:51]} 25. e4 {[%clk 0:01:50]}  Qg6 {[%clk 0:01:52]} 26. Qe2 {[%clk 0:01:45]}  Qe6 {[%clk 0:01:40]} 27. R1b2 {[%clk 0:01:24]}  Re8 {[%clk 0:01:35]} 28. e5 {[%clk 0:01:21]}  Reb8 {[%clk 0:01:21]} 29. Qc2 {[%clk 0:01:18]}  b5 {[%clk 0:01:16]} 30. f4 {[%clk 0:01:14]}  Qg4 {[%clk 0:01:14]} 31. Qc1 {[%clk 0:01:02]}  Rb6 {[%clk 0:01:07]} 32. axb5 {[%clk 0:00:56]}  axb5 {[%clk 0:01:04]} 33. Rf2 {[%clk 0:00:44]}  Qf5 {[%clk 0:01:00]} 34. Qb1 {[%clk 0:00:42]}  Qxb1+ {[%clk 0:00:55]} 35. Rxb1 {[%clk 0:00:41]}  b4 {[%clk 0:00:55]} 36. Rxb4 {[%clk 0:00:27]}  Rxb4 {[%clk 0:00:56]} 37. cxb4 {[%clk 0:00:28]}  Rxb4 {[%clk 0:00:57]} 38. Rc2 {[%clk 0:00:28]}  Rb1+ {[%clk 0:00:56]} 39. Kf2 {[%clk 0:00:28]}  Rd1 {[%clk 0:00:56]} 40. Ke3 {[%clk 0:00:27]}  Rd3+ {[%clk 0:00:56]} 41. Ke2 {[%clk 0:00:27]}  Rxd4 {[%clk 0:00:57]} 42. g3 {[%clk 0:00:27]}  g6 {[%clk 0:00:54]} 43. Ra2 {[%clk 0:00:27]}  Rd3 {[%clk 0:00:51]} 44. Ra8+ {[%clk 0:00:23]}  Kg7 {[%clk 0:00:51]} 45. Rc8 {[%clk 0:00:24]}  Rc3 {[%clk 0:00:46]} 46. Rc7 {[%clk 0:00:20]}  Kf8 {[%clk 0:00:43]} 47. Rc8+ {[%clk 0:00:19]}  Ke7 {[%clk 0:00:43]} 48. Rc7+ {[%clk 0:00:20]}  Ke6 {[%clk 0:00:43]} 49. Rc6+ {[%clk 0:00:19]}  Ke7 {[%clk 0:00:41]} 50. Rc7+ {[%clk 0:00:19]}  Ke8 {[%clk 0:00:40]} 51. Rc8+ {[%clk 0:00:19]}  Kd7 {[%clk 0:00:40]} 52. Rf8 {[%clk 0:00:18]}  Ke7 {[%clk 0:00:38]} 53. Rc8 {[%clk 0:00:18]}  d4 {[%clk 0:00:39]} 54. Rc7+ {[%clk 0:00:18]}  Ke8 {[%clk 0:00:39]} 55. Rc8+ {[%clk 0:00:16]}  Kd7 {[%clk 0:00:39]} 56. Rf8 {[%clk 0:00:15]}  Ke7 {[%clk 0:00:40]} 57. Rc8 {[%clk 0:00:15]}  d3+ {[%clk 0:00:41]} 58. Kd2 {[%clk 0:00:14]}  Rc2+ {[%clk 0:00:41]} 59. Kd1 {[%clk 0:00:14]}  c3 {[%clk 0:00:35]} 60. Rc6 {[%clk 0:00:11]}  Rd2+ {[%clk 0:00:31]} 61. Kc1 {[%clk 0:00:11]}  Rc2+ {[%clk 0:00:32]} 62. Kd1 {[%clk 0:00:11]}  h5 {[%clk 0:00:33]} 63. Rd6 {[%clk 0:00:11]}  Rd2+ {[%clk 0:00:31]} 64. Kc1 {[%clk 0:00:11]}  f6 {[%clk 0:00:30]} 65. Rc6 {[%clk 0:00:07]}  Rc2+ {[%clk 0:00:29]} 66. Kd1 {[%clk 0:00:07]}  fxe5 {[%clk 0:00:28]} 67. fxe5 {[%clk 0:00:07]}  g5 {[%clk 0:00:27]} 68. Rd6 {[%clk 0:00:07]}  Rd2+ {[%clk 0:00:27]} 69. Kc1 {[%clk 0:00:08]}  g4 {[%clk 0:00:27]} 70. Rc6 {[%clk 0:00:08]}  Rc2+ {[%clk 0:00:25]} 71. Kd1 {[%clk 0:00:08]}  Kf7 {[%clk 0:00:25]} 72. Rd6 {[%clk 0:00:09]}  Rd2+ {[%clk 0:00:26]} 73. Kc1 {[%clk 0:00:08]}  Ke8 {[%clk 0:00:24]} 74. Rc6 {[%clk 0:00:08]}  Rc2+ {[%clk 0:00:24]} 75. Kd1 {[%clk 0:00:08]}  Ke7 {[%clk 0:00:18]} 76. Rd6 {[%clk 0:00:08]}  Rd2+ {[%clk 0:00:13]} 77. Kc1 {[%clk 0:00:08]}  Rxh2 {[%clk 0:00:13]} 78. Rxd3 {[%clk 0:00:08]}  c2 {[%clk 0:00:13]} 79. Rc3 {[%clk 0:00:04]}  Ke6 {[%clk 0:00:13]} 80. Kb2 {[%clk 0:00:04]}  Kxe5 {[%clk 0:00:12]} 81. Rc5+ {[%clk 0:00:04]}  Ke4 {[%clk 0:00:10]} 82. Rc4+ {[%clk 0:00:03]}  Kd5 {[%clk 0:00:10]} 83. Rf4 {[%clk 0:00:02]}  Ke5 {[%clk 0:00:09]} 84. Rf8 {[%clk 0:00:01]}  Ke4 {[%clk 0:00:08]} 85. Kc1 {[%clk 0:00:00]}  Rg2 {[%clk 0:00:08]} 0-1


[Site "https://www.chess.com"]

[Event "Titled Tuesday Blitz May 23 Late 2023"]
[White "Jirasek, Ladia"]
[Black "Onslow, Alfie"]
[WhiteFideId "2094398"]
[BlackFideId "436976"]
[WhiteElo "2357"]
[BlackElo "2114"]
[Result "0-1"]
[Round "01"]
[TimeControl "180+2"]
[Date "2023.05.23"]
[WhiteClock "0:01:26"]
[BlackClock "0:00:08"]

1. d4 {[%clk 0:03:00]}  Nf6 {[%clk 0:02:56]} 2. Nc3 {[%clk 0:03:00]}  c5 {[%clk 0:02:49]} 3. d5 {[%clk 0:02:59]}  d6 {[%clk 0:02:47]} 4. e4 {[%clk 0:02:58]}  g6 {[%clk 0:02:47]} 5. Bg5 {[%clk 0:02:58]}  Bg7 {[%clk 0:02:48]} 6. Bb5+ {[%clk 0:02:58]}  Bd7 {[%clk 0:02:47]} 7. a4 {[%clk 0:02:59]}  a6 {[%clk 0:02:47]} 8. Bd3 {[%clk 0:02:59]}  O-O {[%clk 0:02:47]} 9. f4 {[%clk 0:02:59]}  Qc7 {[%clk 0:02:41]} 10. Qe2 {[%clk 0:02:56]}  Bg4 {[%clk 0:02:36]} 11. Nf3 {[%clk 0:02:55]}  Bxf3 {[%clk 0:02:30]} 12. Qxf3 {[%clk 0:02:55]}  Nbd7 {[%clk 0:02:31]} 13. O-O {[%clk 0:02:54]}  c4 {[%clk 0:02:31]} 14. Be2 {[%clk 0:02:54]}  b5 {[%clk 0:02:29]} 15. axb5 {[%clk 0:02:53]}  axb5 {[%clk 0:02:30]} 16. Kh1 {[%clk 0:02:44]}  b4 {[%clk 0:02:06]} 17. Rxa8 {[%clk 0:02:34]}  Rxa8 {[%clk 0:02:05]} 18. Nd1 {[%clk 0:02:35]}  Nb6 {[%clk 0:01:48]} 19. Ne3 {[%clk 0:02:31]}  Ra2 {[%clk 0:01:38]} 20. Rb1 {[%clk 0:02:27]}  Qc5 {[%clk 0:01:09]} 21. h3 {[%clk 0:02:18]}  Kf8 {[%clk 0:01:06]} 22. Bh4 {[%clk 0:02:17]}  Qd4 {[%clk 0:00:54]} 23. c3 {[%clk 0:02:15]}  Qxe4 {[%clk 0:00:33]} 24. Qxe4 {[%clk 0:02:07]}  Nxe4 {[%clk 0:00:33]} 25. cxb4 {[%clk 0:02:07]}  c3 {[%clk 0:00:29]} 26. Bd3 {[%clk 0:02:07]}  Nd2 {[%clk 0:00:22]} 27. Rd1 {[%clk 0:02:03]}  Rxb2 {[%clk 0:00:13]} 28. Be1 {[%clk 0:01:59]}  Rxb4 {[%clk 0:00:11]} 29. g3 {[%clk 0:01:54]}  Rd4 {[%clk 0:00:10]} 30. Bc2 {[%clk 0:01:48]}  Nxd5 {[%clk 0:00:11]} 31. Nxd5 {[%clk 0:01:46]}  Rxd5 {[%clk 0:00:11]} 32. Kg2 {[%clk 0:01:46]}  Rd4 {[%clk 0:00:10]} 33. Bf2 {[%clk 0:01:46]}  Rd5 {[%clk 0:00:10]} 34. Be3 {[%clk 0:01:44]}  f5 {[%clk 0:00:09]} 35. g4 {[%clk 0:01:43]}  Ra5 {[%clk 0:00:09]} 36. Bxd2 {[%clk 0:01:41]}  Ra2 {[%clk 0:00:09]} 37. Bb3 {[%clk 0:01:36]}  Rxd2+ {[%clk 0:00:09]} 38. Rxd2 {[%clk 0:01:36]}  cxd2 {[%clk 0:00:10]} 39. g5 {[%clk 0:01:33]}  e6 {[%clk 0:00:10]} 40. Kf3 {[%clk 0:01:31]}  Bc3 {[%clk 0:00:08]} 41. Ke2 {[%clk 0:01:30]}  d5 {[%clk 0:00:09]} 42. Kd3 {[%clk 0:01:27]}  Ba5 {[%clk 0:00:08]} 43. Ke3 {[%clk 0:01:24]}  Ke7 {[%clk 0:00:08]} 44. Ke2 {[%clk 0:01:24]}  Kd6 {[%clk 0:00:07]} 45. Ba4 {[%clk 0:01:24]}  Ke7 {[%clk 0:00:06]} 46. Bb5 {[%clk 0:01:23]}  Bc7 {[%clk 0:00:06]} 47. Kxd2 {[%clk 0:01:20]}  Bxf4+ {[%clk 0:00:06]} 48. Kd3 {[%clk 0:01:20]}  Bxg5 {[%clk 0:00:07]} 49. Ba4 {[%clk 0:01:21]}  Bf6 {[%clk 0:00:07]} 50. Ke3 {[%clk 0:01:21]}  e5 {[%clk 0:00:07]} 51. Kd3 {[%clk 0:01:21]}  e4+ {[%clk 0:00:08]} 52. Ke3 {[%clk 0:01:22]}  d4+ {[%clk 0:00:08]} 53. Ke2 {[%clk 0:01:23]}  f4 {[%clk 0:00:08]} 54. Kd2 {[%clk 0:01:24]}  Kd6 {[%clk 0:00:08]} 55. Ke2 {[%clk 0:01:24]}  Ke5 {[%clk 0:00:08]} 56. Bc6 {[%clk 0:01:25]}  d3+ {[%clk 0:00:08]} 57. Kf2 {[%clk 0:01:25]}  e3+ {[%clk 0:00:08]} 58. Kf3 {[%clk 0:01:26]}  g5 {[%clk 0:00:08]} 59. Ba4 {[%clk 0:01:27]}  Kd4 {[%clk 0:00:08]} 60. Bd1 {[%clk 0:01:26]}  Kc3 {[%clk 0:00:08]} 0-1


[Site "https://www.chess.com"]

[Event "Titled Tuesday Blitz May 23 Late 2023"]
[White "Iliaguev, Nisim"]
[Black "Debray, Christopher"]
[WhiteFideId "2817276"]
[BlackFideId "630810"]
[WhiteElo "2241"]
[BlackElo "2340"]
[Result "1-0"]
[Round "01"]
[TimeControl "180+2"]
[Date "2023.05.23"]
[WhiteClock "0:02:47"]
[BlackClock "0:02:00"]

1. d4 {[%clk 0:03:00]}  g6 {[%clk 0:02:58]} 2. Nf3 {[%clk 0:02:54]}  Bg7 {[%clk 0:02:58]} 3. g3 {[%clk 0:02:54]}  d6 {[%clk 0:02:58]} 4. Bg2 {[%clk 0:02:55]}  Nd7 {[%clk 0:02:58]} 5. O-O {[%clk 0:02:56]}  e5 {[%clk 0:02:58]} 6. b3 {[%clk 0:02:56]}  exd4 {[%clk 0:02:55]} 7. Bb2 {[%clk 0:02:56]}  c5 {[%clk 0:02:53]} 8. e3 {[%clk 0:02:56]}  Ngf6 {[%clk 0:02:49]} 9. exd4 {[%clk 0:02:57]}  O-O {[%clk 0:02:50]} 10. c4 {[%clk 0:02:56]}  Ne4 {[%clk 0:02:47]} 11. Nc3 {[%clk 0:02:54]}  Ndf6 {[%clk 0:02:42]} 12. Nxe4 {[%clk 0:02:49]}  Nxe4 {[%clk 0:02:43]} 13. Re1 {[%clk 0:02:49]}  Re8 {[%clk 0:02:41]} 14. Qc2 {[%clk 0:02:46]}  Bf5 {[%clk 0:02:35]} 15. g4 {[%clk 0:02:47]}  Bxg4 {[%clk 0:02:21]} 16. Rxe4 {[%clk 0:02:47]}  Bf5 {[%clk 0:02:20]} 17. Rxe8+ {[%clk 0:02:47]}  Qxe8 {[%clk 0:02:21]} 18. Qd2 {[%clk 0:02:48]}  Be4 {[%clk 0:02:10]} 19. Re1 {[%clk 0:02:47]}  f5 {[%clk 0:02:11]} 20. Ng5 {[%clk 0:02:47]}  cxd4 {[%clk 0:02:08]} 21. Nxe4 {[%clk 0:02:47]}  fxe4 {[%clk 0:02:00]} 22. Bxd4 {[%clk 0:02:47]} 1-0


[Site "https://www.chess.com"]

[Event "Titled Tuesday Blitz May 23 Late 2023"]
[White "Fajdetic, Hrvoje"]
[Black "Aldokhin, Ivan"]
[WhiteFideId "14501945"]
[BlackFideId "24115720"]
[WhiteElo "2185"]
[BlackElo "2322"]
[Result "0-1"]
[Round "01"]
[TimeControl "180+2"]
[Date "2023.05.23"]
[WhiteClock "0:01:02"]
[BlackClock "0:00:30"]

1. d4 {[%clk 0:02:58]}  Nf6 {[%clk 0:02:59]} 2. Bf4 {[%clk 0:02:58]}  Nh5 {[%clk 0:02:49]} 3. Bc1 {[%clk 0:02:56]}  d5 {[%clk 0:02:47]} 4. e3 {[%clk 0:02:53]}  Nf6 {[%clk 0:02:41]} 5. c4 {[%clk 0:02:53]}  c5 {[%clk 0:02:38]} 6. cxd5 {[%clk 0:02:44]}  Nxd5 {[%clk 0:02:34]} 7. Nc3 {[%clk 0:02:42]}  Nc6 {[%clk 0:02:31]} 8. Nf3 {[%clk 0:02:18]}  e6 {[%clk 0:02:08]} 9. Bb5 {[%clk 0:02:05]}  Qa5 {[%clk 0:01:48]} 10. Bxc6+ {[%clk 0:01:54]}  bxc6 {[%clk 0:01:43]} 11. O-O {[%clk 0:01:54]}  Nxc3 {[%clk 0:01:15]} 12. Qe1 {[%clk 0:01:44]}  Ba6 {[%clk 0:01:13]} 13. bxc3 {[%clk 0:01:40]}  Bxf1 {[%clk 0:01:07]} 14. Kxf1 {[%clk 0:01:41]}  cxd4 {[%clk 0:01:06]} 15. exd4 {[%clk 0:01:38]}  Bd6 {[%clk 0:01:04]} 16. Bd2 {[%clk 0:01:26]}  O-O {[%clk 0:01:02]} 17. g3 {[%clk 0:01:27]}  c5 {[%clk 0:01:02]} 18. Qe4 {[%clk 0:01:22]}  cxd4 {[%clk 0:00:55]} 19. cxd4 {[%clk 0:01:23]}  Qd5 {[%clk 0:00:53]} 20. Qg4 {[%clk 0:01:20]}  Rfc8 {[%clk 0:00:50]} 21. Bh6 {[%clk 0:01:18]}  Bf8 {[%clk 0:00:47]} 22. Ne5 {[%clk 0:01:11]}  Qh1+ {[%clk 0:00:43]} 23. Ke2 {[%clk 0:01:09]}  Qxa1 {[%clk 0:00:40]} 24. Nd7 {[%clk 0:01:04]}  Rc2+ {[%clk 0:00:35]} 25. Kd3 {[%clk 0:01:02]}  Qc3+ {[%clk 0:00:30]} 0-1


[Site "https://www.chess.com"]

[Event "Titled Tuesday Blitz May 23 Late 2023"]
[White "Manukyan, Sargis A."]
[Black "Rose, Felix"]
[WhiteFideId "13303970"]
[BlackFideId "5105722"]
[WhiteElo "2187"]
[BlackElo "2039"]
[Result "1-0"]
[Round "01"]
[TimeControl "180+2"]
[Date "2023.05.23"]
[WhiteClock "0:00:40"]
[BlackClock "0:00:18"]

1. d4 {[%clk 0:03:00]}  Nf6 {[%clk 0:02:59]} 2. c4 {[%clk 0:02:59]}  e6 {[%clk 0:02:59]} 3. Nc3 {[%clk 0:02:59]}  d5 {[%clk 0:03:00]} 4. Nf3 {[%clk 0:02:57]}  Be7 {[%clk 0:02:59]} 5. Bg5 {[%clk 0:02:56]}  Nbd7 {[%clk 0:02:59]} 6. e3 {[%clk 0:02:56]}  h6 {[%clk 0:02:58]} 7. Bh4 {[%clk 0:02:55]}  O-O {[%clk 0:02:58]} 8. cxd5 {[%clk 0:02:54]}  Nxd5 {[%clk 0:02:58]} 9. Bxe7 {[%clk 0:02:54]}  Nxe7 {[%clk 0:02:58]} 10. Bd3 {[%clk 0:02:50]}  c5 {[%clk 0:02:57]} 11. O-O {[%clk 0:02:51]}  b6 {[%clk 0:02:57]} 12. Qe2 {[%clk 0:02:50]}  Bb7 {[%clk 0:02:54]} 13. Rfd1 {[%clk 0:02:49]}  cxd4 {[%clk 0:02:38]} 14. exd4 {[%clk 0:02:48]}  Nf6 {[%clk 0:02:26]} 15. Rac1 {[%clk 0:02:45]}  Rc8 {[%clk 0:02:20]} 16. Bb1 {[%clk 0:02:40]}  Re8 {[%clk 0:02:17]} 17. Ne5 {[%clk 0:02:40]}  Ned5 {[%clk 0:02:13]} 18. Qd3 {[%clk 0:02:30]}  Nxc3 {[%clk 0:02:03]} 19. bxc3 {[%clk 0:02:30]}  Qd5 {[%clk 0:02:02]} 20. f3 {[%clk 0:02:24]}  Red8 {[%clk 0:02:02]} 21. h3 {[%clk 0:02:14]}  Qa5 {[%clk 0:01:52]} 22. Ng4 {[%clk 0:02:12]}  Qg5 {[%clk 0:01:40]} 23. Nxf6+ {[%clk 0:01:39]}  Qxf6 {[%clk 0:01:40]} 24. Qe3 {[%clk 0:01:39]}  Bd5 {[%clk 0:01:23]} 25. Be4 {[%clk 0:01:34]}  Qg5 {[%clk 0:01:12]} 26. Qxg5 {[%clk 0:01:32]}  hxg5 {[%clk 0:01:12]} 27. Bxd5 {[%clk 0:01:32]}  exd5 {[%clk 0:01:11]} 28. Kf2 {[%clk 0:01:32]}  Rc4 {[%clk 0:01:10]} 29. Ke3 {[%clk 0:01:31]}  Rdc8 {[%clk 0:01:09]} 30. Kd3 {[%clk 0:01:32]}  Ra4 {[%clk 0:01:10]} 31. Rc2 {[%clk 0:01:32]}  Ra3 {[%clk 0:01:06]} 32. Re1 {[%clk 0:01:32]}  Kf8 {[%clk 0:01:05]} 33. Re5 {[%clk 0:01:31]}  f6 {[%clk 0:00:58]} 34. Rxd5 {[%clk 0:01:31]}  Re8 {[%clk 0:00:58]} 35. Rd7 {[%clk 0:01:25]}  Re1 {[%clk 0:00:57]} 36. Kc4 {[%clk 0:01:15]}  Ra1 {[%clk 0:00:51]} 37. d5 {[%clk 0:01:13]}  R1xa2 {[%clk 0:00:51]} 38. Rxa2 {[%clk 0:01:11]}  Rxa2 {[%clk 0:00:51]} 39. d6 {[%clk 0:01:11]}  Rd2 {[%clk 0:00:45]} 40. Kb5 {[%clk 0:01:04]}  Rd5+ {[%clk 0:00:30]} 41. Kc6 {[%clk 0:00:39]}  Rc5+ {[%clk 0:00:30]} 42. Kb7 {[%clk 0:00:40]}  Rxc3 {[%clk 0:00:29]} 43. Rc7 {[%clk 0:00:39]}  Rd3 {[%clk 0:00:26]} 44. d7 {[%clk 0:00:39]}  Ke7 {[%clk 0:00:18]} 45. Kc8 {[%clk 0:00:40]} 1-0


[Site "https://www.chess.com"]

[Event "Titled Tuesday Blitz May 23 Late 2023"]
[White "Omranalhosani21"]
[Black "Della Corte, Alessandro"]
[BlackFideId "813540"]
[WhiteElo "2611"]
[BlackElo "2205"]
[Result "1-0"]
[Round "01"]
[TimeControl "180+2"]
[Date "2023.05.23"]
[WhiteClock "0:00:17"]
[BlackClock "0:00:08"]

1. e4 {[%clk 0:02:57]}  c5 {[%clk 0:02:59]} 2. Nf3 {[%clk 0:02:51]}  d6 {[%clk 0:02:59]} 3. Bd3 {[%clk 0:02:42]}  Nf6 {[%clk 0:02:58]} 4. O-O {[%clk 0:02:37]}  Nc6 {[%clk 0:02:57]} 5. c3 {[%clk 0:02:37]}  Bg4 {[%clk 0:02:57]} 6. Re1 {[%clk 0:02:36]}  e6 {[%clk 0:02:57]} 7. Bc2 {[%clk 0:02:29]}  Be7 {[%clk 0:02:57]} 8. d3 {[%clk 0:02:28]}  O-O {[%clk 0:02:56]} 9. Nbd2 {[%clk 0:02:28]}  d5 {[%clk 0:02:55]} 10. Qe2 {[%clk 0:02:24]}  d4 {[%clk 0:02:50]} 11. a4 {[%clk 0:02:09]}  e5 {[%clk 0:02:47]} 12. Nc4 {[%clk 0:02:00]}  Nd7 {[%clk 0:02:44]} 13. h3 {[%clk 0:01:47]}  Be6 {[%clk 0:02:43]} 14. Bd2 {[%clk 0:01:39]}  a6 {[%clk 0:02:31]} 15. cxd4 {[%clk 0:01:21]}  cxd4 {[%clk 0:02:24]} 16. a5 {[%clk 0:01:12]}  f6 {[%clk 0:02:13]} 17. Ba4 {[%clk 0:01:08]}  Nc5 {[%clk 0:02:08]} 18. Bxc6 {[%clk 0:01:03]}  bxc6 {[%clk 0:02:09]} 19. Nb6 {[%clk 0:01:03]}  Rb8 {[%clk 0:02:01]} 20. b4 {[%clk 0:01:01]}  Nb3 {[%clk 0:01:55]} 21. Rab1 {[%clk 0:01:00]}  Nxd2 {[%clk 0:01:52]} 22. Qxd2 {[%clk 0:01:01]}  c5 {[%clk 0:01:37]} 23. b5 {[%clk 0:00:49]}  axb5 {[%clk 0:01:36]} 24. Rxb5 {[%clk 0:00:50]}  c4 {[%clk 0:01:30]} 25. dxc4 {[%clk 0:00:45]}  Bxc4 {[%clk 0:01:30]} 26. Rb2 {[%clk 0:00:44]}  Be6 {[%clk 0:01:25]} 27. Ra1 {[%clk 0:00:42]}  Qc7 {[%clk 0:01:16]} 28. Ne1 {[%clk 0:00:34]}  Qc3 {[%clk 0:01:08]} 29. Nd3 {[%clk 0:00:32]}  Rb7 {[%clk 0:00:55]} 30. Qxc3 {[%clk 0:00:25]}  dxc3 {[%clk 0:00:54]} 31. Rc2 {[%clk 0:00:26]}  Rd8 {[%clk 0:00:27]} 32. Rxc3 {[%clk 0:00:25]}  Rd4 {[%clk 0:00:26]} 33. Nc5 {[%clk 0:00:19]}  Bxc5 {[%clk 0:00:20]} 34. Rxc5 {[%clk 0:00:20]}  Rxe4 {[%clk 0:00:17]} 35. a6 {[%clk 0:00:20]}  Rxb6 {[%clk 0:00:17]} 36. a7 {[%clk 0:00:20]}  Re1+ {[%clk 0:00:13]} 37. Rxe1 {[%clk 0:00:18]}  Ra6 {[%clk 0:00:14]} 38. Rc6 {[%clk 0:00:17]}  Rxa7 {[%clk 0:00:08]} 39. Rxe6 {[%clk 0:00:17]} 1-0


[Site "https://www.chess.com"]